{"text_format":"3","workbook":"xlsx","n_sheets":5,"sheets":["Kalenterinäkymä","Työntekijöiden poissaoloseur...","Työntekijöiden luettelo","Poissaolotyypit","Yrityksen lomapäivät"],"not_rendered":{"defined_names":16},"read":"whole","date_system":"1900"}

{"sheet":"Kalenterinäkymä","index":0,"n_rows":22,"n_cols":44,"rows_kept":22,"merged":[[1,2,1,8],[2,2,2,8],[18,2,18,4],[18,7,18,10],[18,13,18,15],[18,18,18,20],[18,23,18,25],[18,28,18,30],[19,2,19,4],[19,7,19,10],[19,13,19,15],[19,18,19,20],[19,23,19,25],[19,28,19,30],[20,2,20,4],[20,7,20,10],[20,13,20,15],[20,18,20,20],[20,23,20,25],[20,28,20,30],[21,2,21,4],[21,7,21,10],[21,13,21,15],[21,18,21,20],[21,23,21,25],[21,28,21,30]]}
[null,"TYÖNTEKIJÖIDEN LÄSNÄOLOTIEDOT"]
[null,"Valitse työntekijä:","Työntekijä 1"]
[null,"Anna vuosi:",{"$f":"YEAR(TODAY())","v":2022}]
[]
[null,"Viikonpäivä/kuukausi","MA","TI","KE","TO","PE","LA","SU","MA   ","TI   ","KE   ","TO   ","PE   ","LA   ","SU    ","MA    ","TI    ","KE    ","TO    ","PE    ","LA    ","SU     ","MA     ","TI     ","KE     ","TO  ","PE     ","LA     ","SU ","MA ","TI ","KE ","TO ","PE ","LA ","SU  ","MA  ","TI  ","KE  ","TO         2","PE  ","LA  ","SU2"]
[null,"tammikuu",{"$f":"IFERROR(IF(TEXT(DATE(Kalenterivuosi,ROW($A1),1),\"ppp\")=LEFT(C$5,3),DATE(Kalenterivuosi,ROW($A1),1),\"\"),\"\")","v":""},{"$f":"IFERROR(IF(TEXT(DATE(Kalenterivuosi,ROW($A1),1),\"ppp\")=LEFT(D$5,3),DATE(Kalenterivuosi,ROW($A1),1),IF(C6>=1,C6+1,\"\")),\"\")","v":""},"","","","","",{"$f":"IFERROR(IF(I6>=1,I6+1,\"\"),\"\")","v":""},{"$f":"IFERROR(IF(J6>=1,J6+1,\"\"),\"\")","v":""},{"$f":"IFERROR(IF(K6>=1,K6+1,\"\"),\"\")","v":""},{"$f":"IFERROR(IF(L6>=1,L6+1,\"\"),\"\")","v":""},{"$f":"IFERROR(IF(M6>=1,M6+1,\"\"),\"\")","v":""},{"$f":"IFERROR(IF(N6>=1,N6+1,\"\"),\"\")","v":""},{"$f":"IFERROR(IF(O6>=1,O6+1,\"\"),\"\")","v":""},{"$f":"IFERROR(IF(P6>=1,P6+1,\"\"),\"\")","v":""},{"$f":"IFERROR(IF(Q6>=1,Q6+1,\"\"),\"\")","v":""},{"$f":"IFERROR(IF(R6>=1,R6+1,\"\"),\"\")","v":""},{"$f":"IFERROR(IF(S6>=1,S6+1,\"\"),\"\")","v":""},{"$f":"IFERROR(IF(T6>=1,T6+1,\"\"),\"\")","v":""},{"$f":"IFERROR(IF(U6>=1,U6+1,\"\"),\"\")","v":""},{"$f":"IFERROR(IF(V6>=1,V6+1,\"\"),\"\")","v":""},{"$f":"IFERROR(IF(W6>=1,W6+1,\"\"),\"\")","v":""},{"$f":"IFERROR(IF(X6>=1,X6+1,\"\"),\"\")","v":""},{"$f":"IFERROR(IF(Y6>=1,Y6+1,\"\"),\"\")","v":""},{"$f":"IFERROR(IF(Z6>=1,Z6+1,\"\"),\"\")","v":""},{"$f":"IFERROR(IF(AA6>=1,AA6+1,\"\"),\"\")","v":""},{"$f":"IFERROR(IF(AB6>=1,AB6+1,\"\"),\"\")","v":""},{"$f":"IFERROR(IF(AC6>=1,AC6+1,\"\"),\"\")","v":""},{"$f":"IFERROR(IF(AD6>=1,AD6+1,\"\"),\"\")","v":""},{"$f":"IFERROR(IF(AE6>=1,AE6+1,\"\"),\"\")","v":""},{"$f":"IFERROR(IF(AF6>=1,AF6+1,\"\"),\"\")","v":""},{"$f":"IFERROR(IF(AG6>=1,AG6+1,\"\"),\"\")","v":""},{"$f":"IFERROR(IF(AH6>=1,AH6+1,\"\"),\"\")","v":""},{"$f":"IFERROR(IF(AI6>=1,AI6+1,\"\"),\"\")","v":""},{"$f":"IFERROR(IF(AJ6>=1,AJ6+1,\"\"),\"\")","v":""},{"$f":"IFERROR(IF(AND(AK6>=1,AK6+1<=DATE(Kalenterivuosi,ROW($A1)+1,0)),AK6+1,\"\"),\"\")","v":""},"","","","","",""]
[null,"Helmikuu","","","","","","","","","","","","","","","","","","","","","","","","","","","","","","","","","","","","","","","","","",""]
[null,"Maaliskuu","","","","","","","","","","","","","","","","","","","","","","","","","","","","","","","","","","","","","","","","","",""]
[null,"huhtikuu","","","","","","","","","","","","","","","","","","","","","","","","","","","","","","","","","","","","","","","","","",""]
[null,"Toukokuu","","","","","","","","","","","","","","","","","","","","","","","","","","","","","","","","","","","","","","","","","",""]
[null,"kesäkuu","","","","","","","","","","","","","","","","","","","","","","","","","","","","","","","","","","","","","","","","","",""]
[null,"heinäkuu","","","","","","","","","","","","","","","","","","","","","","","","","","","","","","","","","","","","","","","","","",""]
[null,"Elokuu","","","","","","","","","","","","","","","","","","","","","","","","","","","","","","","","","","","","","","","","","",""]
[null,"syyskuu","","","","","","","","","","","","","","","","","","","","","","","","","","","","","","","","","","","","","","","","","",""]
[null,"lokakuu","","","","","","","","","","","","","","","","","","","","","","","","","","","","","","","","","","","","","","","","","",""]
[null,"Marraskuu","","","","","","","","","","","","","","","","","","","","","","","","","","","","","","","","","","","","","","","","","",""]
[null,"joulukuu","","","","","","","","","","","","","","","","","","","","","","","","","","","","","","","","","","","","","","","","","",""]
[null,"TÄRKEÄT TILASTOT"]
[null,null,"Poissaolopäivät",{"$nulls":4},"Työpäivät",{"$nulls":5},"Sairaslomapäivien määrä",{"$nulls":4},"Lomalla",{"$nulls":4},"Suruloma",{"$nulls":4},"Muu"]
[null,null,{"$f":"SUMIFS(Poissaoloseuranta[Päivät],Poissaoloseuranta[Työntekijän nimi],valSelEmployee,Poissaoloseuranta[Alkamispäivä],\">=\"&DATE(Kalenterivuosi,1,1),Poissaoloseuranta[Päättymispäivä],\"<\"&DATE(Kalenterivuosi+1,1,1))","v":4},{"$nulls":4},{"$f":"NETWORKDAYS(DATE(Kalenterivuosi,1,1),EDATE(DATE(Kalenterivuosi,1,1),12)-1)","v":260},{"$nulls":5},{"$f":"SUMIFS(Poissaoloseuranta[Päivät],Poissaoloseuranta[Työntekijän nimi],valSelEmployee,Poissaoloseuranta[Alkamispäivä],\">=\"&DATE(Kalenterivuosi,1,1),Poissaoloseuranta[Päättymispäivä],\"<\"&DATE(Kalenterivuosi+1,1,1),Poissaoloseuranta[Poissaolotyyppi],Poissaolotyypit!B4)","v":1},{"$nulls":4},{"$f":"SUMIFS(Poissaoloseuranta[Päivät],Poissaoloseuranta[Työntekijän nimi],valSelEmployee,Poissaoloseuranta[Alkamispäivä],\">=\"&DATE(Kalenterivuosi,1,1),Poissaoloseuranta[Päättymispäivä],\"<\"&DATE(Kalenterivuosi+1,1,1),Poissaoloseuranta[Poissaolotyyppi],Poissaolotyypit!B5)","v":0},{"$nulls":4},{"$f":"SUMIFS(Poissaoloseuranta[Päivät],Poissaoloseuranta[Työntekijän nimi],valSelEmployee,Poissaoloseuranta[Alkamispäivä],\">=\"&DATE(Kalenterivuosi,1,1),Poissaoloseuranta[Päättymispäivä],\"<\"&DATE(Kalenterivuosi+1,1,1),Poissaoloseuranta[Poissaolotyyppi],Poissaolotyypit!B6)","v":3},{"$nulls":4},{"$f":"SUMIFS(Poissaoloseuranta[Päivät],Poissaoloseuranta[Työntekijän nimi],valSelEmployee,Poissaoloseuranta[Alkamispäivä],\">=\"&DATE(Kalenterivuosi,1,1),Poissaoloseuranta[Päättymispäivä],\"<\"&DATE(Kalenterivuosi+1,1,1),Poissaoloseuranta[Poissaolotyyppi],Poissaolotyypit!B7)","v":0}]
[null,null,{"$f":"SUMIFS(Poissaoloseuranta[Päivät],Poissaoloseuranta[Työntekijän nimi],valSelEmployee,Poissaoloseuranta[Alkamispäivä],\">=\"&DATE(Kalenterivuosi-1,1,1),Poissaoloseuranta[Päättymispäivä],\"<\"&DATE(Kalenterivuosi,1,1))","v":13},{"$nulls":4},{"$f":"NETWORKDAYS(DATE(Kalenterivuosi-1,1,1),EDATE(DATE(Kalenterivuosi-1,1,1),12)-1)","v":261},{"$nulls":5},{"$f":"SUMIFS(Poissaoloseuranta[Päivät],Poissaoloseuranta[Työntekijän nimi],valSelEmployee,Poissaoloseuranta[Alkamispäivä],\">=\"&DATE(Kalenterivuosi-1,1,1),Poissaoloseuranta[Päättymispäivä],\"<\"&DATE(Kalenterivuosi,1,1),Poissaoloseuranta[Poissaolotyyppi],Poissaolotyypit!B4)","v":4},{"$nulls":4},{"$f":"SUMIFS(Poissaoloseuranta[Päivät],Poissaoloseuranta[Työntekijän nimi],valSelEmployee,Poissaoloseuranta[Alkamispäivä],\">=\"&DATE(Kalenterivuosi-1,1,1),Poissaoloseuranta[Päättymispäivä],\"<\"&DATE(Kalenterivuosi,1,1),Poissaoloseuranta[Poissaolotyyppi],Poissaolotyypit!B5)","v":7},{"$nulls":4},{"$f":"SUMIFS(Poissaoloseuranta[Päivät],Poissaoloseuranta[Työntekijän nimi],valSelEmployee,Poissaoloseuranta[Alkamispäivä],\">=\"&DATE(Kalenterivuosi-1,1,1),Poissaoloseuranta[Päättymispäivä],\"<\"&DATE(Kalenterivuosi,1,1),Poissaoloseuranta[Poissaolotyyppi],Poissaolotyypit!B6)","v":0},{"$nulls":4},{"$f":"SUMIFS(Poissaoloseuranta[Päivät],Poissaoloseuranta[Työntekijän nimi],valSelEmployee,Poissaoloseuranta[Alkamispäivä],\">=\"&DATE(Kalenterivuosi-1,1,1),Poissaoloseuranta[Päättymispäivä],\"<\"&DATE(Kalenterivuosi,1,1),Poissaoloseuranta[Poissaolotyyppi],Poissaolotyypit!B7)","v":2}]
[null,null,{"$f":"IFERROR(IF(C21<>0,IF(C20>=C21,\"YLÖS \", \"ALAS \")&TEXT(C20/C21-1,\"0%;0%\"),\"YLÖS 100%\"),\"\")","v":"ALAS 69%"},{"$nulls":4},{"$f":"IFERROR(IF(H21<>0,IF(H20>=H21,\"YLÖS \", \"ALAS \")&TEXT(H20/H21-1,\"0%;0%\"),\"YLÖS 100%\"),\"\")","v":"ALAS 0%"},{"$nulls":5},{"$f":"IFERROR(IF(N21<>0,IF(N20>=N21,\"YLÖS \", \"ALAS \")&TEXT(N20/N21-1,\"0%;0%\"),\"YLÖS 100%\"),\"\")","v":"ALAS 75%"},{"$nulls":4},{"$f":"IFERROR(IF(S21<>0,IF(S20>=S21,\"YLÖS \", \"ALAS \")&TEXT(S20/S21-1,\"0%;0%\"),\"YLÖS 100%\"),\"\")","v":"ALAS 100%"},{"$nulls":4},{"$f":"IFERROR(IF(X21<>0,IF(X20>=X21,\"YLÖS \", \"ALAS \")&TEXT(X20/X21-1,\"0%;0%\"),\"YLÖS 100%\"),\"\")","v":"YLÖS 100%"},{"$nulls":4},{"$f":"IFERROR(IF(AC21<>0,IF(AC20>=AC21,\"YLÖS \", \"ALAS \")&TEXT(AC20/AC21-1,\"0%;0%\"),\"YLÖS 100%\"),\"\")","v":"ALAS 100%"}]

{"sheet":"Työntekijöiden poissaoloseur...","index":1,"n_rows":26,"n_cols":6,"rows_kept":26}
[null,"Työntekijöiden poissaoloseuranta"]
[]
[null,"Työntekijän nimi","Alkamispäivä","Päättymispäivä","Poissaolotyyppi","Päivät"]
[null,"Työntekijä 1",{"$f":"DATE(YEAR(TODAY()),1,3)","v":"2022-01-03"},{"$f":"DATE(YEAR(TODAY()),1,3)","v":"2022-01-03"},"Sairausloma",{"$f":"NETWORKDAYS(Poissaoloseuranta[[#This Row],[Alkamispäivä]],Poissaoloseuranta[[#This Row],[Päättymispäivä]],lstHolidays)","v":1}]
[null,"Työntekijä 2",{"$f":"DATE(YEAR(TODAY()),1,17)","v":"2022-01-17"},{"$f":"DATE(YEAR(TODAY()),1,18)","v":"2022-01-18"},"Muu",{"$f":"NETWORKDAYS(Poissaoloseuranta[[#This Row],[Alkamispäivä]],Poissaoloseuranta[[#This Row],[Päättymispäivä]],lstHolidays)","v":2}]
[null,"Työntekijä 3",{"$f":"DATE(YEAR(TODAY()),1,18 )","v":"2022-01-18"},{"$f":"DATE(YEAR(TODAY()),1,21)","v":"2022-01-21"},"Muu",{"$f":"NETWORKDAYS(Poissaoloseuranta[[#This Row],[Alkamispäivä]],Poissaoloseuranta[[#This Row],[Päättymispäivä]],lstHolidays)","v":4}]
[null,"Työntekijä 5",{"$f":"DATE(YEAR(TODAY())-1,12,10 )","v":"2021-12-10"},{"$f":"DATE(YEAR(TODAY())-1,12,16)","v":"2021-12-16"},"Suruloma",{"$f":"NETWORKDAYS(Poissaoloseuranta[[#This Row],[Alkamispäivä]],Poissaoloseuranta[[#This Row],[Päättymispäivä]],lstHolidays)","v":5}]
[null,"Työntekijä 4",{"$f":"DATE(YEAR(TODAY())-1,12,1  )","v":"2021-12-01"},{"$f":"DATE(YEAR(TODAY())-1,12,2)","v":"2021-12-02"},"Sairausloma",{"$f":"NETWORKDAYS(Poissaoloseuranta[[#This Row],[Alkamispäivä]],Poissaoloseuranta[[#This Row],[Päättymispäivä]],lstHolidays)","v":2}]
[null,"Työntekijä 1",{"$f":"DATE(YEAR(TODAY())-1,11,14  )","v":"2021-11-14"},{"$f":"DATE(YEAR(TODAY())-1,11,18)","v":"2021-11-18"},"Lomalla",{"$f":"NETWORKDAYS(Poissaoloseuranta[[#This Row],[Alkamispäivä]],Poissaoloseuranta[[#This Row],[Päättymispäivä]],lstHolidays)","v":4}]
[null,"Työntekijä 4",{"$f":"DATE(YEAR(TODAY()),1,31 )","v":"2022-01-31"},{"$f":"DATE(YEAR(TODAY()),2,4)","v":"2022-02-04"},"Sairausloma",{"$f":"NETWORKDAYS(Poissaoloseuranta[[#This Row],[Alkamispäivä]],Poissaoloseuranta[[#This Row],[Päättymispäivä]],lstHolidays)","v":5}]
[null,"Työntekijä 4",{"$f":"DATE(YEAR(TODAY())-1,12,1  )","v":"2021-12-01"},{"$f":"DATE(YEAR(TODAY())-1,12,6)","v":"2021-12-06"},"Muu",{"$f":"NETWORKDAYS(Poissaoloseuranta[[#This Row],[Alkamispäivä]],Poissaoloseuranta[[#This Row],[Päättymispäivä]],lstHolidays)","v":4}]
[null,"Työntekijä 4",{"$f":"DATE(YEAR(TODAY())-1,12,10  )","v":"2021-12-10"},{"$f":"DATE(YEAR(TODAY())-1,12,16)","v":"2021-12-16"},"Muu",{"$f":"NETWORKDAYS(Poissaoloseuranta[[#This Row],[Alkamispäivä]],Poissaoloseuranta[[#This Row],[Päättymispäivä]],lstHolidays)","v":5}]
[null,"Työntekijä 2",{"$f":"DATE(YEAR(TODAY()),1,13 )","v":"2022-01-13"},{"$f":"DATE(YEAR(TODAY()),1,15)","v":"2022-01-15"},"Sairausloma",{"$f":"NETWORKDAYS(Poissaoloseuranta[[#This Row],[Alkamispäivä]],Poissaoloseuranta[[#This Row],[Päättymispäivä]],lstHolidays)","v":2}]
[null,"Työntekijä 5",{"$f":"DATE(YEAR(TODAY()),1,15 )","v":"2022-01-15"},{"$f":"DATE(YEAR(TODAY()),1,20)","v":"2022-01-20"},"Sairausloma",{"$f":"NETWORKDAYS(Poissaoloseuranta[[#This Row],[Alkamispäivä]],Poissaoloseuranta[[#This Row],[Päättymispäivä]],lstHolidays)","v":4}]
[null,"Työntekijä 2",{"$f":"DATE(YEAR(TODAY()),6,13 )","v":"2022-06-13"},{"$f":"DATE(YEAR(TODAY()),6,15)","v":"2022-06-15"},"Suruloma",{"$f":"NETWORKDAYS(Poissaoloseuranta[[#This Row],[Alkamispäivä]],Poissaoloseuranta[[#This Row],[Päättymispäivä]],lstHolidays)","v":3}]
[null,"Työntekijä 5",{"$f":"DATE(YEAR(TODAY()),1,27 )","v":"2022-01-27"},{"$f":"DATE(YEAR(TODAY()),2,3)","v":"2022-02-03"},"Suruloma",{"$f":"NETWORKDAYS(Poissaoloseuranta[[#This Row],[Alkamispäivä]],Poissaoloseuranta[[#This Row],[Päättymispäivä]],lstHolidays)","v":6}]
[null,"Työntekijä 3",{"$f":"DATE(YEAR(TODAY()),1,17 )","v":"2022-01-17"},{"$f":"DATE(YEAR(TODAY()),1,18)","v":"2022-01-18"},"Lomalla",{"$f":"NETWORKDAYS(Poissaoloseuranta[[#This Row],[Alkamispäivä]],Poissaoloseuranta[[#This Row],[Päättymispäivä]],lstHolidays)","v":2}]
[null,"Työntekijä 3",{"$f":"DATE(YEAR(TODAY())-1,12,12 )","v":"2021-12-12"},{"$f":"DATE(YEAR(TODAY())-1,12,17)","v":"2021-12-17"},"Suruloma",{"$f":"NETWORKDAYS(Poissaoloseuranta[[#This Row],[Alkamispäivä]],Poissaoloseuranta[[#This Row],[Päättymispäivä]],lstHolidays)","v":5}]
[null,"Työntekijä 1",{"$f":"DATE(YEAR(TODAY())-1,12,21  )","v":"2021-12-21"},{"$f":"DATE(YEAR(TODAY())-1,12,22)","v":"2021-12-22"},"Muu",{"$f":"NETWORKDAYS(Poissaoloseuranta[[#This Row],[Alkamispäivä]],Poissaoloseuranta[[#This Row],[Päättymispäivä]],lstHolidays)","v":2}]
[null,"Työntekijä 1",{"$f":"DATE(YEAR(TODAY())-1,12,14  )","v":"2021-12-14"},{"$f":"DATE(YEAR(TODAY())-1,12,16)","v":"2021-12-16"},"Lomalla",{"$f":"NETWORKDAYS(Poissaoloseuranta[[#This Row],[Alkamispäivä]],Poissaoloseuranta[[#This Row],[Päättymispäivä]],lstHolidays)","v":3}]
[null,"Työntekijä 2",{"$f":"DATE(YEAR(TODAY())-1,11,29  )","v":"2021-11-29"},{"$f":"DATE(YEAR(TODAY())-1,12,6)","v":"2021-12-06"},"Suruloma",{"$f":"NETWORKDAYS(Poissaoloseuranta[[#This Row],[Alkamispäivä]],Poissaoloseuranta[[#This Row],[Päättymispäivä]],lstHolidays)","v":6}]
[null,"Työntekijä 5",{"$f":"DATE(YEAR(TODAY())-1,12,3  )","v":"2021-12-03"},{"$f":"DATE(YEAR(TODAY())-1,12,7)","v":"2021-12-07"},"Lomalla",{"$f":"NETWORKDAYS(Poissaoloseuranta[[#This Row],[Alkamispäivä]],Poissaoloseuranta[[#This Row],[Päättymispäivä]],lstHolidays)","v":3}]
[null,"Työntekijä 1",{"$f":"DATE(YEAR(TODAY()),1,31 )","v":"2022-01-31"},{"$f":"DATE(YEAR(TODAY()),2,2)","v":"2022-02-02"},"Suruloma",{"$f":"NETWORKDAYS(Poissaoloseuranta[[#This Row],[Alkamispäivä]],Poissaoloseuranta[[#This Row],[Päättymispäivä]],lstHolidays)","v":3}]
[null,"Työntekijä 1",{"$f":"DATE(YEAR(TODAY())-1,11,24 )","v":"2021-11-24"},{"$f":"DATE(YEAR(TODAY())-1,11,29)","v":"2021-11-29"},"Sairausloma",{"$f":"NETWORKDAYS(Poissaoloseuranta[[#This Row],[Alkamispäivä]],Poissaoloseuranta[[#This Row],[Päättymispäivä]],lstHolidays)","v":4}]
[null,"Työntekijä 2",{"$f":"DATE(YEAR(TODAY()),12,5 )","v":"2022-12-05"},{"$f":"DATE(YEAR(TODAY()),12,9)","v":"2022-12-09"},"Lomalla",{"$f":"NETWORKDAYS(Poissaoloseuranta[[#This Row],[Alkamispäivä]],Poissaoloseuranta[[#This Row],[Päättymispäivä]],lstHolidays)","v":5}]
[null,"Työntekijä 5",{"$f":"DATE(YEAR(TODAY()),4,11 )","v":"2022-04-11"},{"$f":"DATE(YEAR(TODAY()),4,19)","v":"2022-04-19"},"Lomalla",{"$f":"NETWORKDAYS(Poissaoloseuranta[[#This Row],[Alkamispäivä]],Poissaoloseuranta[[#This Row],[Päättymispäivä]],lstHolidays)","v":7}]

{"sheet":"Työntekijöiden luettelo","index":2,"n_rows":8,"n_cols":2,"rows_kept":8}
[null,"Työntekijöiden luettelo"]
[]
[null,"Työntekijöiden nimet"]
[null,"Työntekijä 1"]
[null,"Työntekijä 2"]
[null,"Työntekijä 3"]
[null,"Työntekijä 4"]
[null,"Työntekijä 5"]

{"sheet":"Poissaolotyypit","index":3,"n_rows":7,"n_cols":2,"rows_kept":7}
[null,"Poissaolotyypit"]
[]
[null,"Luettelo poissaolotyypeistä"]
[null,"Sairausloma"]
[null,"Lomalla"]
[null,"Suruloma"]
[null,"Muu"]

{"sheet":"Yrityksen lomapäivät","index":4,"n_rows":9,"n_cols":3,"rows_kept":9}
[null,"Yrityksen lomapäivät"]
[]
[null,"Yrityksen lomapäivät","Kuvaus"]
[null,{"$f":"DATE(YEAR(TODAY()),1,1)","v":"2022-01-01"},"Uudenvuodenpäivä"]
[null,{"$f":"DATE(YEAR(TODAY()),7,4)","v":"2022-07-04"},"Itsenäisyyspäivä"]
[null,{"$f":"DATE(YEAR(TODAY()),11,24)","v":"2022-11-24"},"Juhannus"]
[null,{"$f":"DATE(YEAR(TODAY()),11,25)","v":"2022-11-25"},"Juhannus"]
[null,{"$f":"DATE(YEAR(TODAY()),12,24)","v":"2022-12-24"},"Joulu"]
[null,{"$f":"DATE(YEAR(TODAY()),12,25)","v":"2022-12-25"},"Joulu"]